fUST/lending_fUST_20250808
["ID","MTS","AMOUNT","RATE_DAILY","PERIOD"]
[377863609,1754584249238,-1000.0,0.0002263,2]
[377863610,1754584249247,-1000.0,0.0002263,2]
[377863611,1754584249257,-1000.0,0.0002263,2]
[377863612,1754584249267,-1000.0,0.0002263,2]
[377863613,1754584249276,-1000.0,0.0002263,2]
[377863614,1754584249285,-1000.0,0.0002263,2]
[377863615,1754584249295,-1000.0,0.0002263,2]
[377863616,1754584249306,-1000.0,0.0002263,2]
[377863617,1754584249316,-1000.0,0.0002263,2]
[377863618,1754584249325,-1000.0,0.0002263,2]
[377863619,1754584249335,-1000.0,0.0002263,2]
[377863620,1754584249345,-1000.0,0.0002263,2]
[377863621,1754584249355,-1000.0,0.0002263,2]
[377863622,1754584249364,-1000.0,0.0002263,2]
[377863623,1754584249374,-1000.0,0.0002263,2]
[377863624,1754584249384,-1000.0,0.0002263,2]
[377863625,1754584249393,-216.29398629,0.0002263,2]
[377863626,1754584249402,-243.579711,0.0002263,7]
[377863627,1754584249412,-151.0,0.0002263,7]
[377863628,1754584249422,-1000.0,0.00022721,2]
[377863629,1754584249431,-1000.0,0.00022721,2]
[377863630,1754584249441,-460.0,0.00022739,2]
[377863631,1754584249451,-460.0,0.00022739,2]
[377863632,1754584249464,-460.0,0.00022739,2]
[377863633,1754584249474,-460.0,0.00022739,2]
[377863634,1754584249484,-460.0,0.00022739,2]
[377863635,1754584249495,-460.0,0.00022739,2]
[377863636,1754584249504,-460.0,0.00022739,2]
[377863637,1754584249514,-1153.91,0.00022739,2]
[377863638,1754584249525,-542.83,0.00022739,2]
[377863639,1754584249535,-501.83922112,0.00022739,2]
[377863640,1754584249544,-516.86987364,0.00022739,2]
[377863641,1754584249555,-460.0,0.00022739,2]
[377863642,1754584249564,-460.0,0.00022739,2]
[377863643,1754584249573,-759.38,0.00022739,2]
[377863644,1754584249583,-1230.81,0.00022739,2]
[377863645,1754584249592,-460.0,0.00022739,2]
[377863646,1754584249602,-460.0,0.00022739,2]
[377863647,1754584249611,-460.0,0.00022739,2]
[377863648,1754584249621,-460.0,0.00022739,2]
[377863649,1754584249631,-629.59,0.00022739,2]
[377863650,1754584249641,-500.02,0.00022739,2]
[377863651,1754584249651,-460.0,0.00022739,2]
[377863652,1754584249660,-543.31658908,0.00022739,2]
[377863653,1754584249669,-151.0,0.00022739,7]
[377863654,1754584249679,-641.18,0.00022739,2]
[377863655,1754584249688,-460.0,0.00022739,2]
[377863656,1754584249698,-712.12,0.00022739,2]
[377863657,1754584249707,-1756.564561,0.00022739,7]
[377863658,1754584249716,-313.292897,0.00022739,7]
[377863659,1754584249725,-1756.564561,0.00022739,7]
[377863660,1754584249734,-313.292897,0.00022739,7]
[377863661,1754584249743,-460.0,0.00022739,2]
[377863662,1754584249753,-463.38,0.00022739,2]
[377863663,1754584249762,-460.0,0.00022739,2]
[377863664,1754584249771,-460.0,0.00022739,2]
[377863665,1754584249781,-1182.88,0.00022739,2]
[377863666,1754584249791,-1464.49,0.00022739,2]
[377863667,1754584249800,-370.53597588,0.00022739,2]
[377863668,1754584249809,-4847.35,0.00022739,2]
[377863669,1754584249819,-151.0,0.00022739,7]
[377863670,1754584249829,-460.0,0.00022739,2]
[377863671,1754584249838,-151.0,0.00022739,7]
[377863672,1754584249848,-460.0,0.00022739,2]
[377863673,1754584249857,-927.23,0.00022739,2]
[377863674,1754584249867,-460.0,0.00022739,2]
[377863675,1754584249877,-710.54,0.00022739,2]
[377863676,1754584249886,-460.0,0.00022739,2]
[377863677,1754584249896,-1068.94,0.00022739,2]
[377863678,1754584249906,-460.0,0.00022739,2]
[377863679,1754584249916,-460.0,0.00022739,2]
[377863680,1754584249925,-314.31286238,0.00022739,2]
[377863681,1754584249936,-460.0,0.00022739,2]
[377863682,1754584249946,-560.094558,0.00022739,7]
[377863683,1754584249955,-853.89,0.00022739,2]
[377863684,1754584249965,-560.094558,0.00022739,7]
[377863685,1754584249974,-1067.73,0.00022739,2]
[377863686,1754584249983,-771.82,0.00022739,2]
[377863687,1754584249993,-460.0,0.00022739,2]
[377863688,1754584250002,-460.0,0.00022739,2]
[377863689,1754584250011,-151.0,0.00022739,7]
[377863690,1754584250021,-1327.7,0.00022739,2]
[377863691,1754584250030,-2924.96,0.00022739,2]
[377863692,1754584250040,-771.69,0.00022739,2]
[377863693,1754584250049,-460.0,0.00022739,2]
[377863694,1754584250058,-618.455089,0.00022739,7]
[377863695,1754584250067,-151.0,0.00022739,7]
[377863696,1754584250077,-618.455089,0.00022739,7]
[377863697,1754584250086,-5500.46,0.00022739,2]
[377863698,1754584250096,-1159.97,0.00022739,2]
[377863699,1754584250106,-460.0,0.00022739,2]
[377863700,1754584250115,-1317.53,0.00022739,2]
[377863701,1754584250125,-2857.67,0.00022739,2]
[377863702,1754584250135,-599.88707215,0.00022739,2]
[377863703,1754584250344,-460.0,0.00021917,2]
[377863704,1754584250354,-460.0,0.00021917,2]
[377863705,1754584250363,-239.59677015,0.00021917,2]
[377863706,1754584250373,-460.0,0.00022191,2]
[377863707,1754584250382,-1306.78292785,0.00022739,2]
[377863708,1754584250392,-1492.974833,0.00022739,7]
[377863709,1754584250401,-330.11953156,0.00022739,2]
[377863710,1754584250410,-1492.974833,0.00022739,7]
[377863711,1754584250419,-2575.66,0.00022739,2]
[377863712,1754584250430,-281.61762682,0.00022739,2]
[377863713,1754584250440,-460.0,0.00022739,2]
[377863714,1754584250451,-664.58,0.00022739,2]
[377863715,1754584250470,-460.0,0.00022739,2]
[377863716,1754584250479,-460.0,0.00022739,2]
[377863717,1754584250489,-151.0,0.00022739,7]
[377863718,1754584250499,-813.33,0.00022739,2]
[377863719,1754584250509,-151.0,0.00022739,7]
[377863720,1754584250518,-460.0,0.00022739,2]
[377863721,1754584250528,-460.0,0.00022739,2]
[377863722,1754584250538,-883.04,0.00022739,2]
[377863723,1754584250547,-175.42,0.00022739,2]
[377863724,1754584250557,-1005.19,0.00022739,2]
[377863725,1754584250566,-151.0,0.00022739,7]
[377863726,1754584250575,-460.0,0.00022739,2]
[377863727,1754584250697,-645.91,0.00022739,2]
[377863728,1754584250706,-460.0,0.00022739,2]
[377863729,1754584250716,-720.8,0.00022739,2]
[377863730,1754584250725,-611.03,0.00022739,2]
[377863731,1754584250734,-460.0,0.00022739,2]
[377863732,1754584250743,-1249.66712762,0.00022739,2]
[377863733,1754584250755,-1839.75287238,0.00022739,2]
[377863734,1754584250765,-918.95,0.00022739,2]
[377863735,1754584250774,-460.0,0.00022739,2]
[377863736,1754584250783,-460.0,0.00022739,2]
[377863737,1754584250793,-812.94,0.00022739,2]
[377863738,1754584250802,-744.62,0.00022739,2]
[377863739,1754584250812,-469.61,0.00022739,2]
[377863740,1754584250821,-131.12712762,0.00022739,2]
[377863741,1754584293612,1000.0,0.0003211,30]
[377863742,1754584294408,1000.0,0.0003211,30]
[377863743,1754584294828,1000.0,0.0003211,30]
[377863744,1754584295305,1000.0,0.0003211,30]
[377863745,1754584295611,1000.0,0.0003211,30]
[377863746,1754584295927,1000.0,0.0003211,30]
[377863747,1754584296253,1000.0,0.0003211,30]
[377863748,1754584296578,1000.0,0.0003211,30]
[377863749,1754584296904,1000.0,0.0003211,30]
[377863750,1754584297486,1000.0,0.0003211,30]
[377863751,1754584298148,1000.0,0.0003211,30]
[377863752,1754584298883,1000.0,0.0003211,30]
[377863753,1754584299054,1000.0,0.0003211,30]
[377863754,1754584299363,1000.0,0.0003211,30]
[377863755,1754584299726,1000.0,0.0003211,30]
[377863756,1754584300343,1000.0,0.0003211,30]
[377863757,1754584300675,1000.0,0.0003211,30]
[377863758,1754584301030,1000.0,0.0003211,30]
[377863759,1754584301380,1000.0,0.0003211,30]
[377863760,1754584301734,1000.0,0.0003211,30]
[377863761,1754584302376,1000.0,0.0003211,30]
[377863762,1754584302626,1000.0,0.0003211,30]
[377863763,1754584303513,1000.0,0.0003211,30]
[377863764,1754584303679,1000.0,0.0003211,30]
[377863765,1754584303999,1000.0,0.0003211,30]
[377863766,1754584304367,1000.0,0.0003211,30]
[377863767,1754584304689,1000.0,0.0003211,30]
[377863768,1754584305610,1000.0,0.0003211,30]
[377863769,1754584306050,1000.0,0.0003211,30]
[377863770,1754584306261,1000.0,0.0003211,30]
[377863771,1754584306360,1000.0,0.0003211,30]
[377863772,1754584306694,1000.0,0.0003211,30]
[377863773,1754584307031,1000.0,0.0003211,30]
[377863774,1754584307619,1000.0,0.0003211,30]
[377863775,1754584308229,1000.0,0.0003211,30]
[377863776,1754584308594,1000.0,0.0003211,30]
[377863777,1754584309156,1000.0,0.0003211,30]
[377863778,1754584310632,1000.0,0.0003211,30]
[377863779,1754584311313,1000.0,0.0003211,30]
[377863780,1754584312130,1000.0,0.0003211,30]
[377863787,1754584471287,7995.50331298,0.00021481,2]
[377863788,1754584471309,2004.49668702,0.00021481,2]
[377863789,1754584486156,5466.8,0.00021481,2]
[377863791,1754584487054,5000.0,0.00021481,2]
[377863792,1754584498765,2528.70331298,0.00020906,2]
[377863793,1754584498788,15000.0,0.00020906,2]
[377863794,1754584498810,7371.29668702,0.00020906,2]
[377863795,1754584502778,5000.0,0.00021481,2]
[377863796,1754584518048,2628.70331298,0.00021481,2]
[377863797,1754584518071,2371.29668702,0.00021481,2]
[377863804,1754584621629,256.992037,0.00020968,2]
[377863805,1754584622377,1001.1673937,0.00020968,2]
[377863808,1754584693730,11370.54388228,0.0002,2]
[377863809,1754584693754,7232.43210226,0.0002,2]
[377863814,1754584859723,516.11743195,0.0002062,2]
[377863815,1754584861834,2062.40525806,0.0002062,2]
[377863816,1754584877510,442.47083097,0.0002062,2]
[377863817,1754584879748,1768.11344056,0.0002062,2]
[377863821,1754584923194,626.39963992,0.00020968,2]
[377863824,1754585082997,585.058968,0.00013699,2]
[377863825,1754585083267,585.058968,0.00020187,2]
[377863830,1754585193883,166.379181,0.00020696,2]
[377863832,1754585224483,375.83978395,0.00020968,2]
[377863835,1754585303915,-1200.0,0.00021616,2]
[377863836,1754585303940,-10134.64250532,0.00021617,2]
[377863837,1754585303970,-1200.0,0.00021706,2]
[377863838,1754585303998,-932.92,0.00021707,3]
[377863839,1754585304067,-466.46,0.00021707,3]
[377863840,1754585304097,-233.23,0.00021707,3]
[377863841,1754585304131,-699.71,0.00021707,3]
[377863842,1754585304156,-398.48,0.00021707,10]
[377863843,1754585304186,-500.0,0.00021716,2]
[377863844,1754585304213,-500.0,0.00021716,2]
[377863845,1754585304239,-500.0,0.00021716,2]
[377863846,1754585304274,-500.0,0.00021716,2]
[377863847,1754585304300,-500.0,0.00021716,2]
[377863848,1754585304327,-500.0,0.00021716,2]
[377863849,1754585304354,-500.0,0.00021716,2]
[377863850,1754585304380,-317.00385593,0.00021716,2]
[377863851,1754585304407,-500.0,0.00021716,2]
[377863852,1754585304433,-500.0,0.00021716,2]
[377863853,1754585304456,-500.0,0.00021716,2]
[377863854,1754585304480,-500.0,0.00021716,2]
[377863855,1754585304503,-400.0,0.00021716,2]
[377863856,1754585304532,-500.0,0.00021716,2]
[377863857,1754585304555,-500.0,0.00021716,2]
[377863858,1754585304578,-500.0,0.00021716,2]
[377863859,1754585304601,-217017.55363875,0.00021717,2]
[377863880,1754585432318,-282.45288004,0.00021716,2]
[377863881,1754585432371,-917.54711996,0.00021716,2]
[377863882,1754585432381,-22230.45288004,0.00021717,2]
[377863883,1754585432425,-4404.2748889,0.00021717,2]
[377864039,1754585438604,-163.81959451,0.00021617,2]
[377864040,1754585438615,-126347.71859231,0.00021717,2]
[377864041,1754585438624,-3925.19020055,0.00021817,2]
[377864042,1754585438634,-293.0794966,0.000219,2]
[377864043,1754585438644,-500.0,0.00021916,2]
[377864044,1754585438653,-500.0,0.00021916,2]
[377864045,1754585438663,-500.0,0.00021916,2]
[377864047,1754585438672,-500.0,0.00021916,2]
[377864048,1754585438681,-500.0,0.00021916,2]
[377864049,1754585438689,-500.0,0.00021916,2]
[377864051,1754585438698,-500.0,0.00021916,2]
[377864053,1754585438707,-500.0,0.00021916,2]
[377864054,1754585438717,-500.0,0.00021917,2]
[377864056,1754585438725,-460.0,0.00021917,2]
[377864057,1754585438734,-460.0,0.00021917,2]
[377864058,1754585438743,-460.0,0.00021917,2]
[377864059,1754585438753,-460.0,0.00021917,2]
[377864061,1754585438765,-460.0,0.00021917,2]
[377864062,1754585438774,-460.0,0.00021917,2]
[377864063,1754585438783,-460.0,0.00021917,2]
[377864064,1754585438793,-460.0,0.00021917,2]
[377864065,1754585438803,-460.94049731,0.00021917,2]
[377864066,1754585438813,-460.0,0.00021917,2]
[377864067,1754585438822,-460.0,0.00021917,2]
[377864068,1754585438831,-460.0,0.00021917,2]
[377864069,1754585438842,-460.0,0.00021917,2]
[377864070,1754585438852,-460.0,0.00021917,2]
[377864071,1754585438863,-460.0,0.00021917,2]
[377864072,1754585438873,-460.0,0.00021917,2]
[377864073,1754585438882,-460.0,0.00021917,2]
[377864074,1754585438892,-417.39336558,0.00021917,2]
[377864075,1754585438901,-460.0,0.00021917,2]
[377864076,1754585438911,-593.43,0.00021917,2]
[377864077,1754585438922,-462.35939164,0.00021917,2]
[377864078,1754585438932,-460.0,0.00021917,2]
[377864079,1754585438942,-405.0774063,0.00021917,2]
[377864080,1754585438951,-460.0,0.00021917,2]
[377864081,1754585438960,-460.0,0.00021917,2]
[377864083,1754585438969,-460.0,0.00021917,2]
[377864084,1754585438979,-460.0,0.00021917,2]
[377864085,1754585438989,-961.59,0.00021917,2]
[377864086,1754585438999,-460.0,0.00021917,2]
[377864087,1754585439008,-460.0,0.00021917,2]
[377864088,1754585439176,-460.0,0.00021917,2]
[377864089,1754585439186,-460.0,0.00021917,2]
[377864090,1754585439196,-460.0,0.00021917,2]
[377864091,1754585439206,-470.91817191,0.00021917,2]
[377864092,1754585439215,-460.0,0.00021917,2]
[377864093,1754585439225,-460.0,0.00021917,2]
[377864094,1754585439235,-460.0,0.00021917,2]
[377864095,1754585439245,-460.0,0.00021917,2]
[377864096,1754585439255,-460.0,0.00021917,2]
[377864097,1754585439264,-461.63272166,0.00021917,2]
[377864098,1754585439273,-460.0,0.00021917,2]
[377864099,1754585439283,-460.0,0.00021917,2]
[377864100,1754585439292,-460.0,0.00021917,2]
[377864101,1754585439302,-464.24175177,0.00021917,2]
[377864102,1754585439311,-460.0,0.00021917,2]
[377864103,1754585439320,-460.0,0.00021917,2]
[377864104,1754585439330,-460.0,0.00021917,2]
[377864105,1754585439340,-1025.68,0.00021917,2]
[377864106,1754585439350,-711.58,0.00021917,2]
[377864107,1754585439360,-461.91117377,0.00021917,2]
[377864108,1754585439370,-460.0,0.00021917,2]
[377864109,1754585439380,-460.0,0.00021917,2]
[377864110,1754585439390,-460.0,0.00021917,2]
[377864111,1754585439400,-460.0,0.00021917,2]
[377864112,1754585439409,-460.0,0.00021917,2]
[377864113,1754585439418,-460.0,0.00021917,2]
[377864114,1754585439428,-460.0,0.00021917,2]
[377864115,1754585439438,-513.29,0.00021917,2]
[377864116,1754585439447,-460.0,0.00021917,2]
[377864117,1754585439457,-460.0,0.00021917,2]
[377864118,1754585439466,-460.0,0.00021917,2]
[377864119,1754585439476,-460.0,0.00021917,2]
[377864120,1754585439487,-460.0,0.00021917,2]
[377864121,1754585439496,-460.0,0.00021917,2]
[377864122,1754585439505,-460.0,0.00021917,2]
[377864123,1754585439515,-460.0,0.00021917,2]
[377864124,1754585439525,-569.03,0.00021917,2]
[377864125,1754585439534,-460.0,0.00021917,2]
[377864126,1754585439545,-460.0,0.00021917,2]
[377864127,1754585439561,-460.0,0.00021917,2]
[377864128,1754585439574,-460.0,0.00021917,2]
[377864129,1754585439584,-460.0,0.00021917,2]
[377864130,1754585439593,-460.0,0.00021917,2]
[377864131,1754585439602,-460.0,0.00021917,2]
[377864132,1754585439614,-461.71399137,0.00021917,2]
[377864133,1754585439623,-460.0,0.00021917,2]
[377864134,1754585439633,-460.0,0.00021917,2]
[377864135,1754585439643,-475.52,0.00021917,2]
[377864136,1754585439652,-460.0,0.00021917,2]
[377864137,1754585439661,-460.0,0.00021917,2]
[377864138,1754585439671,-460.0,0.00021917,2]
[377864139,1754585439681,-460.0,0.00021917,2]
[377864141,1754585439690,-460.0,0.00021917,2]
[377864143,1754585439700,-460.0,0.00021917,2]
[377864144,1754585439710,-460.0,0.00021917,2]
[377864145,1754585439719,-460.0,0.00021917,2]
[377864146,1754585439729,-460.0,0.00021917,2]
[377864147,1754585439739,-460.0,0.00021917,2]
[377864148,1754585439749,-465.74708563,0.00021917,2]
[377864149,1754585439760,-460.0,0.00021917,2]
[377864150,1754585439776,-460.0,0.00021917,2]
[377864151,1754585439786,-460.0,0.00021917,2]
[377864152,1754585439795,-460.0,0.00021917,2]
[377864153,1754585439806,-460.0,0.00021917,2]
[377864154,1754585439816,-677.77,0.00021917,2]
[377864155,1754585439825,-460.0,0.00021917,2]
[377864156,1754585439834,-460.0,0.00021917,2]
[377864157,1754585439844,-460.0,0.00021917,2]
[377864160,1754585439854,-460.0,0.00021917,2]
[377864163,1754585439864,-460.0,0.00021917,2]
[377864164,1754585439874,-460.0,0.00021917,2]
[377864165,1754585439884,-460.0,0.00021917,2]
[377864166,1754585439894,-569.98,0.00021917,2]
[377864168,1754585439903,-460.0,0.00021917,2]
[377864169,1754585439913,-460.0,0.00021917,2]
[377864170,1754585439923,-460.0,0.00021917,2]
[377864171,1754585439932,-460.0,0.00021917,2]
[377864172,1754585439942,-466.12,0.00021917,2]
[377864173,1754585439951,-460.0,0.00021917,2]
[377864174,1754585439961,-460.0,0.00021917,2]
[377864175,1754585439971,-460.0,0.00021917,2]
[377864176,1754585439980,-460.0,0.00021917,2]
[377864177,1754585439989,-461.82841496,0.00021917,2]
[377864178,1754585439999,-460.0,0.00021917,2]
[377864180,1754585440008,-460.0,0.00021917,2]
[377864181,1754585440017,-460.0,0.00021917,2]
[377864183,1754585440027,-465.77644384,0.00021917,2]
[377864184,1754585440037,-460.0,0.00021917,2]
[377864185,1754585440046,-460.0,0.00021917,2]
[377864186,1754585440056,-462.07707354,0.00021917,2]
[377864188,1754585440065,-460.0,0.00021917,2]
[377864190,1754585440075,-460.0,0.00021917,2]
[377864191,1754585440084,-460.0,0.00021917,2]
[377864192,1754585440094,-460.0,0.00021917,2]
[377864193,1754585440104,-460.0,0.00021917,2]
[377864194,1754585440115,-460.0,0.00021917,2]
[377864196,1754585440125,-460.0,0.00021917,2]
[377864197,1754585440134,-460.0,0.00021917,2]
[377864198,1754585440144,-455.73160461,0.00021917,2]
[377864199,1754585440154,-460.0,0.00021917,2]
[377864200,1754585440163,-460.0,0.00021917,2]
[377864202,1754585440173,-460.0,0.00021917,2]
[377864203,1754585440183,-460.0,0.00021917,2]
[377864204,1754585440193,-460.0,0.00021917,2]
[377864205,1754585440203,-460.0,0.00021917,2]
[377864206,1754585440212,-460.0,0.00021917,2]
[377864207,1754585440222,-460.0,0.00021917,2]
[377864208,1754585440232,-460.0,0.00021917,2]
[377864209,1754585440241,-460.0,0.00021917,2]
[377864210,1754585440250,-822.97,0.00021917,2]
[377864211,1754585440261,-460.0,0.00021917,2]
[377864212,1754585440271,-460.0,0.00021917,2]
[377864213,1754585440280,-460.0,0.00021917,2]
[377864214,1754585440290,-628.38,0.00021917,2]
[377864215,1754585440299,-460.0,0.00021917,2]
[377864216,1754585440309,-1150.72,0.00021917,2]
[377864217,1754585440319,-460.89175647,0.00021917,2]
[377864218,1754585440328,-460.0,0.00021917,2]
[377864219,1754585440338,-609.82332364,0.00021917,2]
[377864220,1754585440348,-460.0,0.00021917,2]
[377864221,1754585440358,-464.32823463,0.00021917,2]
[377864222,1754585440371,-475.36224357,0.00021917,2]
[377864223,1754585440382,-460.0,0.00021917,2]
[377864224,1754585440391,-462.74,0.00021917,2]
[377864225,1754585440401,-463.18359865,0.00021917,2]
[377864226,1754585440411,-460.0,0.00021917,2]
[377864227,1754585440420,-460.0,0.00021917,2]
[377864228,1754585440430,-460.0,0.00021917,2]
[377864229,1754585440440,-460.0,0.00021917,2]
[377864230,1754585440449,-857.1,0.00021917,2]
[377864231,1754585440459,-460.0,0.00021917,2]
[377864232,1754585440468,-4583.72,0.00021917,2]
[377864233,1754585440477,-513.29925806,0.00021917,2]
[377864234,1754585440486,-888.93,0.00021917,2]
[377864235,1754585440495,-463.93393613,0.00021917,2]
[377864236,1754585440505,-460.0,0.00021917,2]
[377864237,1754585440515,-585.2,0.00021917,2]
[377864238,1754585440525,-460.0,0.00021917,2]
[377864239,1754585440534,-467.26627834,0.00021917,2]
[377864240,1754585440544,-460.0,0.00021917,2]
[377864241,1754585440554,-460.0,0.00021917,2]
[377864242,1754585440564,-462.74087877,0.00021917,2]
[377864243,1754585440573,-807.02,0.00021917,2]
[377864244,1754585440583,-460.0,0.00021917,2]
[377864245,1754585440593,-460.36624562,0.00021917,2]
[377864246,1754585440602,-460.0,0.00021917,2]
[377864247,1754585440612,-460.0,0.00021917,2]
[377864248,1754585440622,-460.0,0.00021917,2]
[377864249,1754585440631,-1929.28,0.00021917,2]
[377864250,1754585440641,-460.0,0.00021917,2]
[377864251,1754585440650,-460.0,0.00021917,2]
[377864252,1754585440659,-500.0,0.00021917,2]
[377864253,1754585440668,-460.0,0.00021917,2]
[377864254,1754585440677,-460.0,0.00021917,2]
[377864255,1754585440686,-460.0,0.00021917,2]
[377864256,1754585440696,-460.0,0.00021917,2]
[377864257,1754585440705,-460.0,0.00021917,2]
[377864258,1754585440714,-468.64917723,0.00021917,2]
[377864259,1754585440724,-460.0,0.00021917,2]
[377864260,1754585440733,-460.0,0.00021917,2]
[377864261,1754585440744,-460.0,0.00021917,2]
[377864262,1754585440754,-460.0,0.00021917,2]
[377864263,1754585440766,-460.0,0.00021917,2]
[377864264,1754585440776,-460.0,0.00021917,2]
[377864265,1754585440785,-1106.41,0.00021917,2]
[377864266,1754585440794,-460.0,0.00021917,2]
[377864267,1754585440805,-460.0,0.00021917,2]
[377864268,1754585440814,-460.0,0.00021917,2]
[377864269,1754585440823,-460.0,0.00021917,2]
[377864270,1754585440832,-460.0,0.00021917,2]
[377864271,1754585440846,-467.37708738,0.00021917,2]
[377864272,1754585440856,-460.0,0.00021917,2]
[377864273,1754585440869,-460.0,0.00021917,2]
[377864274,1754585440879,-596.65951002,0.00021917,2]
[377864275,1754585440889,-460.0,0.00021917,2]
[377864276,1754585440898,-460.0,0.00021917,2]
[377864277,1754585440908,-460.0,0.00021917,2]
[377864278,1754585440917,-460.0,0.00021917,2]
[377864279,1754585440927,-460.0,0.00021917,2]
[377864280,1754585440936,-460.0,0.00021917,2]
[377864281,1754585440946,-460.0,0.00021917,2]
[377864282,1754585440955,-460.0,0.00021917,2]
[377864283,1754585440965,-180.64454354,0.00021917,2]
[377864284,1754585440975,-674.64,0.00021917,2]
[377864285,1754585440985,-460.0,0.00021917,2]
[377864286,1754585440995,-460.0,0.00021917,2]
[377864287,1754585441004,-460.0,0.00021917,2]
[377864288,1754585441013,-460.0,0.00021917,2]
[377864289,1754585441023,-460.0,0.00021917,2]
[377864290,1754585441032,-460.0,0.00021917,2]
[377864291,1754585441041,-460.0,0.00021917,2]
[377864292,1754585441051,-976.62,0.00021917,2]
[377864293,1754585441060,-460.0,0.00021917,2]
[377864294,1754585441069,-460.0,0.00021917,2]
[377864295,1754585441078,-460.0,0.00021917,2]
[377864296,1754585441087,-460.0,0.00021917,2]
[377864297,1754585441097,-460.0,0.00021917,2]
[377864298,1754585441106,-460.0,0.00021917,2]
[377864299,1754585441122,-460.0,0.00021917,2]
[377864300,1754585441132,-1790.64,0.00021917,2]
[377864301,1754585441141,-460.0,0.00021917,2]
[377864302,1754585441151,-460.0,0.00021917,2]
[377864303,1754585441160,-1216.9,0.00021917,2]
[377864304,1754585441169,-542.88445701,0.00021917,2]
[377864305,1754585441178,-460.0,0.00021917,2]
[377864306,1754585441187,-460.0,0.00021917,2]
[377864307,1754585441197,-460.0,0.00021917,2]
[377864308,1754585441207,-1021.61,0.00021917,2]
[377864309,1754585441216,-460.0,0.00021917,2]
[377864310,1754585441227,-460.0,0.00021917,2]
[377864311,1754585441237,-812.24,0.00021917,2]
[377864312,1754585441246,-1041.91,0.00021917,2]
[377864313,1754585441256,-460.0,0.00021917,2]
[377864314,1754585441266,-460.0,0.00021917,2]
[377864315,1754585441276,-460.0,0.00021917,2]
[377864316,1754585441286,-460.0,0.00021917,2]
[377864317,1754585441295,-460.0,0.00021917,2]
[377864318,1754585441305,-460.0,0.00021917,2]
[377864319,1754585441314,-268.55931038,0.00021917,2]
[377864320,1754585441324,-460.0,0.00021917,2]
[377864321,1754585441333,-460.0,0.00021917,2]
[377864322,1754585441342,-1655.29,0.00021917,2]
[377864323,1754585441352,-460.0,0.00021917,2]
[377864324,1754585441365,-460.0,0.00021917,2]
[377864325,1754585441375,-471.12779907,0.00021917,2]
[377864326,1754585441385,-460.0,0.00021917,2]
[377864327,1754585441394,-460.0,0.00021917,2]
[377864328,1754585441404,-719.38,0.00021917,2]
[377864329,1754585441414,-460.0,0.00021917,2]
[377864330,1754585441423,-610.97,0.00021917,2]
[377864331,1754585441433,-1794.57,0.00021917,2]
[377864332,1754585441443,-460.0,0.00021917,2]
[377864333,1754585441452,-460.0,0.00021917,2]